[Event "FIDE WSTC Open 50 2025"]
[Site "Prague"]
[Date "2025.02.25"]
[Round "8.33"]
[White "Titscher, Libor"]
[Black "Lesiege, Alexandre"]
[Result "0-1"]
[Annotator "TA"]
[ECO "A22"]
[WhiteElo "2147"]
[BlackElo "2504"]
[PlyCount "50"]
[EventDate "2025.02.17"]
[EventType "team-tourn"]
[EventCountry "CZE"]
[SourceTitle "playchess.com"]
[Source "ChessBase"]
[SourceQuality "1"]
[TimeControl "40/5400+30:1800+30"]

{[%evp 12,50,-13,-18,-13,-20,-17,-14,-21,-56,-66,-52,-49,-83,-91,-107,-41,-74,-75,-102,-95,-124,-109,-109,-101,-102,-105,-109,-102,-152,-149,-158,-166,-196,-191,-366,-373,-411,-370,-384,-372]} 1. c4 {[%emt 0:00:03]} e5 {[%emt 0:00:13]} 2. Nc3 {[%emt 0:00:07]} Nf6 {[%emt 0:00:22]} 3. g3 {[%emt 0:00:09]} Bb4 {[%emt 0:00:22]} 4. Bg2 {[%emt 0:00:12]} O-O {[%emt 0:00:08]} 5. e4 {[%emt 0:00:13]} Bxc3 {[%emt 0:01:31]} 6. dxc3 {[%emt 0:00:01]} d6 {[%emt 0:00:09]} 7. Ne2 {[%emt 0:00:44]} a5 $1 {[%emt 0:01:54][%mdl 4] now scores much better than the old 7...Be6. A22: English Opening: 1...e5 2 Nc3 Nf6.} 8. a4 {[%emt 0:00:10]} Na6 {[%emt 0:00:37]} 9. O-O {[%emt 0:23:27]} Nc5 {[%emt 0:01:33] The position is equal.} 10. Bg5 {[%emt 0:00:22]} h6 {[%emt 0:00:50]} (10... Ncxe4 $2 11. Bxe4 Bh3 12. Bg2 (12. Bxb7 Bxf1 13. Qxf1 Rb8 $18) 12... Bxg2 13. Kxg2 $18) 11. Bxf6 {[%emt 0:00:36]} Qxf6 {[%emt 0:00:05]} 12. b3 $146 {[%emt 0:07:21]} (12. Nc1 Qg6 13. f3 Be6 14. b3 Rfd8 15. Nd3 h5 16. Nxc5 dxc5 17. Qe2 h4 18. g4 {0-1 Fernandez,J-Malbran,G (2350) San Isidoro op 1993 (5)}) 12... Qg6 {[%emt 0:03:08]} 13. f3 {[%emt 0:15:07]} b6 {[%emt 0:13:16]} ({Black should try} 13... Be6 $17 14. Rf2 b6) 14. Nc1 {[%emt 0:10:37]} Qg5 {[%emt 0:16:27]} 15. Qe2 {[%emt 0:04:25]} Bb7 {[%emt 0:08:28]} 16. Rb1 {[%emt 0:03:36]} Qh5 {[%emt 0:05:05] Black has more active pieces.} 17. Rb2 {[%emt 0:02:18]} f5 {[%emt 0:05:56]} 18. exf5 {[%emt 0:09:27]} Qxf5 {[%emt 0:00:06]} (18... Rxf5 $2 {too greedy.} 19. g4 Qg5 20. gxf5 $18) 19. Qd1 {[%emt 0:04:44]} Rf7 {[%emt 0:06:06]} 20. f4 {[%emt 0:01:40]} (20. b4 $142 Ne6 21. Nb3) 20... Bxg2 $17 {[%emt 0:00:51]} 21. Rxg2 {[%emt 0:00:57]} Raf8 {[%emt 0:01:51]} 22. g4 {[%emt 0:03:04]} Qe4 {[%emt 0:04:43]} 23. Re2 {[%emt 0:01:55] [#] Prevents Qe3+.} (23. f5 {was the only defense.}) 23... Qg6 $19 {[%emt 0:00:52] Black is winning.} 24. Qd5 {[%emt 0:00:57]} Qxg4+ {[%emt 0:00:22]} 25. Rg2 {[%emt 0:00:16]} Qe6 {[%emt 0:00:19] Weighted Error Value: White=0.31/Black=0.09 (flawless)   Mistake:       	White=2     	Black=1      Inaccurate:     	White=5     	---        OK:         	White=6     	Black=10     Best:        	---       	Black=1} 0-1

[Event "FIDE WSTC Open 50 2025"]
[Site "Prague"]
[Date "2025.02.25"]
[Round "8.34"]
[White "Duong, Thanh Nha"]
[Black "Schulenburg, Bernd"]
[Result "1-0"]
[Annotator "TA"]
[ECO "A05"]
[WhiteElo "2168"]
[BlackElo "2144"]
[PlyCount "39"]
[EventDate "2025.02.17"]
[EventType "team-tourn"]
[EventCountry "CZE"]
[SourceTitle "playchess.com"]
[Source "ChessBase"]
[SourceQuality "1"]
[TimeControl "40/5400+30:1800+30"]

{[%evp 15,39,8,7,0,0,0,0,-2,-8,-27,0,-41,-46,-48,-32,-25,-25,-30,-28,-25,-19,-72,72,52,545,552]} 1. Nf3 {[%emt 0:00:18]} Nf6 {[%emt 0:00:30]} 2. c4 {[%emt 0:00:10]} e6 {[%emt 0:01:06]} 3. g3 {[%emt 0:00:32]} d5 {[%emt 0:01:16]} 4. d4 {[%emt 0:01:13]} Bb4+ {[%emt 0:02:28]} 5. Bd2 {[%emt 0:00:34]} Be7 {[%emt 0:00:07]} 6. Bg2 {[%emt 0:00:14]} O-O {[%emt 0:00:51]} 7. Qc2 {[%emt 0:00:36]} Nbd7 {[%emt 0:07:25]} 8. O-O {[%emt 0:01:16]} c6 {[%emt 0:03:48]} 9. a4 {[%emt 0:05:15] E11: Bogo-Indian.} a5 {[%emt 0:06:19]} 10. b3 {[%emt 0:06:34]} b6 {[%emt 0:05:42]} 11. Rc1 {[%emt 0:07:38] The position is equal.} Ba6 {[%emt 0:06:54]} 12. cxd5 $146 {[%emt 0:01:38]} (12. Na3 Rc8 13. Bf4 Bb4 14. Ne5 Nxe5 15. Bxe5 Ng4 16. Bf4 g5 17. Be3 Nxe3 18. fxe3 {0-1 Kusa,J (2340)-Gagare,S (2480) Pardubice Czech op-A 34th 2023 (8)}) 12... Nxd5 {[%emt 0:04:07]} 13. e4 {[%emt 0:02:45]} (13. Qxc6 $2 Rc8 $19 (13... Bxe2 14. Qc2 $15)) 13... Nb4 {[%emt 0:01:10]} 14. Bxb4 {[%emt 0:00:12]} Bxb4 {[%emt 0:00:09]} 15. Nbd2 {[%emt 0:00:54]} Rc8 {[%emt 0:03:20]} 16. Nc4 {[%emt 0:01:03]} b5 {[%emt 0:08:41]} 17. Ne3 {[%emt 0:01:15]} bxa4 {[%emt 0:00:28]} 18. Rxa4 {[%emt 0:07:02] [#]} (18. bxa4 $11 Nb6 19. Rd1) 18... e5 {[%emt 0:07:35]} 19. dxe5 {[%emt 0:03:10] White is more active.} Nc5 $2 {[%emt 0:03:55][%mdl 8192] [#]} ({Black should play} 19... Bb5 $14) 20. Rxb4 $1 {[%emt 0:00:39][%mdl 512] Weighted Error Value: White=0.17 (very precise) /Black=0.72  Loses game:     	---       	Black=1      Mistake:       	White=1     	Black=1      Inaccurate:     	White=1     	Black=1      OK:         	White=4     	Black=6      Brilliant:      	White=1     	---} 1-0

[Event "FIDE WSTC Open 50 2025"]
[Site "Prague"]
[Date "2025.02.25"]
[Round "8.35"]
[White "Berndt, Matthias"]
[Black "Pineault, Denis"]
[Result "1/2-1/2"]
[Annotator "TA"]
[ECO "B20"]
[WhiteElo "2072"]
[BlackElo "2270"]
[PlyCount "62"]
[EventDate "2025.02.17"]
[EventType "team-tourn"]
[EventCountry "CZE"]
[SourceTitle "playchess.com"]
[Source "ChessBase"]
[SourceQuality "1"]
[TimeControl "40/5400+30:1800+30"]

{[%evp 11,62,2,6,5,8,-7,25,22,22,-4,65,0,10,7,4,18,40,29,59,55,60,25,15,0,10,-7,0,0,0,-19,6,0,4,0,-9,-6,0,0,0,0,0,0,0,0,13,0,-2,-19,-20,-32,-17,-20,-20]} 1. e4 {[%emt 0:00:04]} c5 {[%emt 0:00:13]} 2. d3 {[%emt 0:00:16]} Nc6 {[%emt 0:00:20]} 3. g3 {[%emt 0:00:07]} g6 {[%emt 0:00:06]} 4. Bg2 {[%emt 0:00:08]} Bg7 {[%emt 0:00:04]} 5. Nf3 {[%emt 0:00:47]} d6 {[%emt 0:01:58]} 6. O-O {[%emt 0:00:16]} Rb8 {[%emt 0:07:55]} 7. a4 {[%emt 0:02:46] A04: Unusual lines after 1 Nf3 and King's Indian Attack.} a6 {[%emt 0:03:01][%cal Ba7a6,Ba6b5][%mdl 32]} 8. Nbd2 {[%emt 0:08:50]} b5 {[%emt 0:04:37]} 9. axb5 {[%emt 0:00:48] White has an edge.} axb5 {[%emt 0:00:11]} 10. Re1 {[%emt 0:00:10][%cal Oe4e5]} e6 {[%emt 0:09:40]} (10... e5 $11) 11. Nf1 {[%emt 0:05:09]} ({White should play} 11. e5 $1 $14) 11... Nge7 {[%emt 0:00:20]} 12. c3 {[%emt 0:01:25]} b4 {[%emt 0:11:28]} 13. d4 {[%emt 0:04:58]} bxc3 {[%emt 0:00:48]} 14. bxc3 {[%emt 0:00:03]} cxd4 $146 {[%emt 0:00:51]} ({Predecessor:} 14... O-O 15. Ba3 cxd4 16. cxd4 Qc7 17. Rc1 Ra8 18. Qb3 Qd7 19. e5 d5 20. Ne3 Ba6 {0-1 Birkin,M (1945)-Hera,I (2618) Llucmajor op 6th 2017 (1)}) 15. cxd4 {[%emt 0:00:28]} O-O {[%emt 0:01:07]} 16. Bf4 {[%emt 0:02:23]} e5 {[%emt 0:08:24]} 17. dxe5 {[%emt 0:03:20]} dxe5 {[%emt 0:00:37]} 18. Bg5 {[%emt 0:00:31]} h6 {[%emt 0:01:32] The position is symmetric and equal} 19. Be3 {[%emt 0:00:44]} Be6 {[%emt 0:06:11]} 20. Qc1 {[%emt 0:05:20]} Kh7 {[%emt 0:01:03]} 21. Rd1 {[%emt 0:02:36]} Nd4 {[%emt 0:06:17]} 22. Bxd4 {[%emt 0:15:18]} exd4 {[%emt 0:00:17]} 23. e5 {[%emt 0:00:17]} Rc8 {[%emt 0:16:49]} 24. Qf4 {[%emt 0:04:27]} Nc6 {[%emt 0:00:49]} 25. Nxd4 {[%emt 0:01:31]} Nxd4 {[%emt 0:00:40]} 26. Rxd4 {[%emt 0:00:09]} Qc7 {[%emt 0:01:30]} 27. Re1 {[%emt 0:01:41]} Rfe8 {[%emt 0:01:30]} 28. Rd3 {[%emt 0:10:16]} h5 {[%emt 0:02:42]} 29. Qd4 {[%emt 0:02:39]} Red8 {[%emt 0:04:59]} 30. Qe3 {[%emt 0:01:55]} Rxd3 {[%emt 0:00:12]} 31. Qxd3 {[%emt 0:00:02]} Bxe5 {[%emt 0:00:13] Weighted Error Value: White=0.09 (flawless) /Black=0.13 (very precise)   Mistake:       	White=1     	Black=1      Inaccurate:     	White=2     	Black=2      OK:         	White=10    	Black=7} 1/2-1/2